Workbook

Sheet Подоконники100
A1: Дата: | O1: 1977-04-11 | P1: =LOOKUP(DATE(,MONTH(O1),DAY(O1)),{1,20,50,81,111,142,173,205,236,267,297,327,357}, {"Козерог","Водолей","Рыбы","Овен","Телец","Близнецы","Рак","Лев","Дева","Весы","Скорпион","Стрелец","Козерог"}) -> Овен | Q1: Сейчас | R1: =LOOKUP(DATE(,MONTH(NOW()),DAY(NOW())),{1,20,50,81,111,142,173,205,236,267,297,327,357}, {"Козерог","Водолей","Рыбы","Овен","Телец","Близнецы","Рак","Лев","Дева","Весы","Скорпион","Стрелец","Козерог"}) -> Телец
A3: Заказ с предоплатой № | F3: откН | O3: 1977 | P3: =REPT(CHOOSE(TRUNC(MOD(O3,10)/2,)+1,"бело","черно","зелено","красно","желто")&IF(COUNT(1/(MOD(O3,12)={1,6,7,8})),"го ","й ")&CHOOSE(MOD(O3,12)+1,"обезьяны","петуха","собаки","свиньи","крысы","коровы","тигра","зайца","дракона","змеи","лошади","овцы"),O3<>"") -> красной змеи
A4: Заказчик
A5: Адрес
A6: Организация
A7: Адрес/тел
A8: ИНН
A10: № | B10: Подоконники | D10: Расчет | H10: Накладки на Под. | J10: Монтаж | K10: Всего | N10: Монтаж
B11: Ширина | C11: Размер | D11: Ширина/кол-во | F11: Итого | G11: Сумма | H11: Итого | I11: Сумма | J11: Сумма | K11: Сумма | N11: TRUE
A12: 1 | B12: 1000 | C12: =INDEX('!СПРАВКА!'!$I$70:$I$81,L12,1) -> 150 | D12: =IF(OR(ISBLANK(B12),E12=0),,ROUNDUP(B12/1000,2)) -> 1 | E12: 1 | F12: =D12*E12 -> 1 | G12: =$F12*VLOOKUP($L12,'!СПРАВКА!'!$G$70:$J$81,4,0) -> 180 | H12: =E12 -> 1 | I12: =IF(M12,0,H12*РЦзП) -> 30 | J12: =IF(F12=0,0,IF($N$11,E12*МонтП,0)) -> 50 | K12: =G12+I12+J12 -> 260 | L12: 1 | M12: =OR(ISBLANK(C12),ISBLANK(B12)) -> FALSE
A13: =A12+1 -> 2 | B13: 1000 | C13: =INDEX('!СПРАВКА!'!$I$70:$I$81,L13,1) -> 600 | D13: =IF(OR(ISBLANK(B13),E13=0),,ROUNDUP(B13/1000,2)) -> 1 | E13: 1 | F13: =D13*E13 -> 1 | G13: =$F13*VLOOKUP($L13,'!СПРАВКА!'!$G$70:$J$81,4,0) -> 670 | H13: =E13 -> 1 | I13: 30 | J13: 50 | K13: =G13+I13+J13 -> 750 | L13: 10 | M13: =OR(ISBLANK(C13),ISBLANK(B13)) -> FALSE
A14: 3 | B14: 1000 | C14: =INDEX('!СПРАВКА!'!$I$70:$I$81,L14,1) -> 150 | D14: 1 | E14: 1 | F14: 1 | G14: =$F14*VLOOKUP($L14,'!СПРАВКА!'!$G$70:$J$81,4,0) -> 180 | H14: 1 | I14: 30 | J14: 50 | K14: 260 | L14: 1 | M14: FALSE
A15: 4 | B15: 1000 | C15: =INDEX('!СПРАВКА!'!$I$70:$I$81,L15,1) -> 150 | D15: 1 | E15: 1 | F15: 1 | G15: =$F15*VLOOKUP($L15,'!СПРАВКА!'!$G$70:$J$81,4,0) -> 180 | H15: 1 | I15: 30 | J15: 50 | K15: 260 | L15: 1 | M15: FALSE
A16: 5 | B16: 1000 | C16: =INDEX('!СПРАВКА!'!$I$70:$I$81,L16,1) -> 150 | D16: 1 | E16: 1 | F16: 1 | G16: =$F16*VLOOKUP($L16,'!СПРАВКА!'!$G$70:$J$81,4,0) -> 180 | H16: 1 | I16: 30 | J16: 50 | K16: 260 | L16: 1 | M16: FALSE
A17: 6 | B17: 1000 | C17: =INDEX('!СПРАВКА!'!$I$70:$I$81,L17,1) -> 150 | D17: 1 | E17: 1 | F17: 1 | G17: =$F17*VLOOKUP($L17,'!СПРАВКА!'!$G$70:$J$81,4,0) -> 180 | H17: 1 | I17: 30 | J17: 50 | K17: 260 | L17: 1 | M17: FALSE
A18: 7 | B18: 1000 | C18: =INDEX('!СПРАВКА!'!$I$70:$I$81,L18,1) -> 150 | D18: 1 | E18: 1 | F18: 1 | G18: =$F18*VLOOKUP($L18,'!СПРАВКА!'!$G$70:$J$81,4,0) -> 180 | H18: 1 | I18: 30 | J18: 50 | K18: 260 | L18: 1 | M18: FALSE
A19: 8 | B19: 1000 | C19: =INDEX('!СПРАВКА!'!$I$70:$I$81,L19,1) -> Мюллер | D19: 1 | E19: 1 | F19: 1 | G19: =$F19*VLOOKUP($L19,'!СПРАВКА!'!$G$70:$J$81,4,0) -> 2000 | H19: 1 | I19: 30 | J19: 50 | K19: 2080 | L19: 11 | M19: FALSE
A20: 9 | B20: 1000 | C20: =INDEX('!СПРАВКА!'!$I$70:$I$81,L20,1) -> 150 | D20: 1 | E20: 1 | F20: 1 | G20: =$F20*VLOOKUP($L20,'!СПРАВКА!'!$G$70:$J$81,4,0) -> 180 | H20: 1 | I20: 30 | J20: 50 | K20: 260 | L20: 1 | M20: FALSE
A21: 10 | B21: 1000 | C21: =INDEX('!СПРАВКА!'!$I$70:$I$81,L21,1) -> 150 | D21: 1 | E21: 1 | F21: 1 | G21: =$F21*VLOOKUP($L21,'!СПРАВКА!'!$G$70:$J$81,4,0) -> 180 | H21: 1 | I21: 30 | J21: 50 | K21: 260 | L21: 1 | M21: FALSE
A22: 11 | B22: 1000 | C22: =INDEX('!СПРАВКА!'!$I$70:$I$81,L22,1) -> 150 | D22: 1 | E22: 1 | F22: 1 | G22: =$F22*VLOOKUP($L22,'!СПРАВКА!'!$G$70:$J$81,4,0) -> 180 | H22: 1 | I22: 30 | J22: 50 | K22: 260 | L22: 1 | M22: FALSE
A23: 12 | B23: 1000 | C23: =INDEX('!СПРАВКА!'!$I$70:$I$81,L23,1) -> 150 | D23: 1 | E23: 1 | F23: 1 | G23: =$F23*VLOOKUP($L23,'!СПРАВКА!'!$G$70:$J$81,4,0) -> 180 | H23: 1 | I23: 30 | J23: 50 | K23: 260 | L23: 1 | M23: FALSE
A24: 13 | C24: =INDEX('!СПРАВКА!'!$I$70:$I$81,L24,1) -> 350 | D24: =IF(OR(ISBLANK(B24),E24=0),,ROUNDUP(B24/1000,2)) -> 0 | F24: =D24*E24 -> 0 | G24: =$F24*VLOOKUP($L24,'!СПРАВКА!'!$G$70:$J$81,4,0) -> 0 | H24: =E24 -> 0 | I24: 0 | J24: =IF(F24=0,0,IF($N$11,E24*МонтП,0)) -> 0 | K24: =G24+I24+J24 -> 0 | L24: 5 | M24: TRUE
A25: 14 | C25: =INDEX('!СПРАВКА!'!$I$70:$I$81,L25,1) -> 350 | D25: =IF(OR(ISBLANK(B25),E25=0),,ROUNDUP(B25/1000,2)) -> 0 | F25: =D25*E25 -> 0 | G25: =$F25*VLOOKUP($L25,'!СПРАВКА!'!$G$70:$J$81,4,0) -> 0 | H25: =E25 -> 0 | I25: 0 | J25: =IF(F25=0,0,IF($N$11,E25*МонтП,0)) -> 0 | K25: =G25+I25+J25 -> 0 | L25: 5 | M25: TRUE
A26: 15 | C26: =INDEX('!СПРАВКА!'!$I$70:$I$81,L26,1) -> 350 | D26: =IF(OR(ISBLANK(B26),E26=0),,ROUNDUP(B26/1000,2)) -> 0 | F26: =D26*E26 -> 0 | G26: =$F26*VLOOKUP($L26,'!СПРАВКА!'!$G$70:$J$81,4,0) -> 0 | H26: =E26 -> 0 | I26: 0 | J26: =IF(F26=0,0,IF($N$11,E26*МонтП,0)) -> 0 | K26: =G26+I26+J26 -> 0 | L26: 5 | M26: TRUE
A27: 16 | C27: =INDEX('!СПРАВКА!'!$I$70:$I$81,L27,1) -> 350 | D27: =IF(OR(ISBLANK(B27),E27=0),,ROUNDUP(B27/1000,2)) -> 0 | F27: =D27*E27 -> 0 | G27: =$F27*VLOOKUP($L27,'!СПРАВКА!'!$G$70:$J$81,4,0) -> 0 | H27: =E27 -> 0 | I27: 0 | J27: =IF(F27=0,0,IF($N$11,E27*МонтП,0)) -> 0 | K27: =G27+I27+J27 -> 0 | L27: 5 | M27: TRUE
K28: 0
F29: =SUM(F12:F27) -> 12 | G29: =SUM(G12:G27) -> 4470 | H29: =SUM(H12:H27) -> 12 | I29: =SUM(I12:I27) -> 360 | J29: =SUM(J12:J17) -> 300 | K29: =CEILING(SUM(K12:K27),1) -> 5430
A35: Сумма прописью | C35: =[2]!сумма_прописью(K29) -> 
D37: Заказчик | G37: / | K37: /
F38: подпись | I38: фио
D39: Менеджер | G39: / | K39: /
F40: подпись | I40: фио

Sheet !СПРАВКА!
B1: СкПСТов | C1: =0.68*0.9 -> 0.612
B2: СКПСДоп | C2: =0.8 -> 0.8
B3: МКомп | C3: 300 | D3: Монтажный комплект
B4: НацКонМ | C4: 1.23 | D4: Наценка на конструкцию с монтажем
B5: ДРК | C5: 250 | D5: Доставка
B6: Этаж | C6: 40 | D6: Подъем на этаж
B7: Ком | C7: 150 | D7: Командировочные
B8: Груз | C8: 20 | D8: Доставка по району
B9: Легк | C9: 10 | D9: Проезд за город
B10: ДостПоГор | C10: 100 | D10: Доставка по городу
B11: НацРаб | C11: 2 | D11: Наценка на работы
B12: Монтаж | C12: 0.05 | D12: Монтаж от закупки
B13: Демонтаж | C13: 100 | D13: Демонтаж за 1м2
B14: ДемСлож | C14: 100 | D14: ="+ за сложность демонтажа" -> + за сложность демонтажа
B15: МонСлож | C15: 100 | D15: ="+ за сложность монтажа" -> + за сложность монтажа
B16: НацМонДем | C16: 0.25 | D16: Наценка монтаж-демонтаж
B17: ЗамерОкн | C17: 100 | D17: Замер 1 окна
B18: МКомпР | C18: 150 | D18: Монтажный комплект ролл
B19: МонтажПл | C19: 200 | D19: Монтаж за 1 м2 МПИ
B20: ПрибыльО | C20: 1.3 | D20: Прибыль от закупки МПИ
B21: РасчетМенО | C21: 200 | D21: ЗП за расчет менеджерам МПИ
B22: ПрибыльР | C22: 1.5 | D22: Прибыль от закупки Ролл-Ставни
B23: ЗамерРолл | C23: 100 | D23: Замер 1 Ролл-ставни
B24: РасчетМенР | C24: 200 | D24: ЗП за расчет менеджерам Ролл
B25: МонтажПлР | C25: 300 | D25: Монтаж за 1 м2 Ролл
B27: РЦ78 | C27: 180
B28: РЦ56 | C28: 130
B29: РЦ35 | C29: 100
B30: РЦНС | C30: 3
B31: РЦМонт | C31: 50
B32: ЗЦ78 | C32: 70
B33: ЗЦ56 | C33: 51
B34: ЗЦ35 | C34: 35
B35: РЦ100 | C35: 210
C37: 35
C38: 56
C39: 78
C40: 100
A41: Выс | F41: Высота | G41: Ширина
B42: Шир | C42: Форма | E42: =INDEX(ФормаНал,D43,1) ->  | F42: =FLOOR((D43-0.5)/3,1) -> 0 | G42: =MOD(D43-1,3) -> 0
D43: 1 | E43: - | F43: 0 | G43: 1
B44: 1 | C44: - | D44: 2 | E44: = | F44: 0 | G44: 2
A45: 1 | B45: 2 | C45: = | D45: 3 | E45: I | F45: 1 | G45: 0
A46: 1 | C46: I | D46: 4 | E46: Г | F46: 1 | G46: 1
A47: 1 | B47: 1 | C47: Г | D47: 5 | E47: С | F47: 1 | G47: 2
A48: 2 | B48: 2 | C48: С | D48: 6 | E48: | | | F48: 2 | G48: =MOD(D49-1,3) -> 0
A49: 2 | C49: | | | D49: 7 | E49: П | F49: 2 | G49: =MOD(D50-1,3) -> 1
A50: 2 | B50: 1 | C50: П | D50: 8 | E50: O | F50: =FLOOR((D51-0.5)/3,1) -> 2 | G50: =MOD(D51-1,3) -> 2
B51: 2 | C51: O | D51: 9
B55: РазОр60х90 | C55: 60х90 | D55: Размер Орас 60х90
B56: РазОр60х94 | C56: 60х94 | D56: Размер Орас 60х94
B57: РазОр60х130 | C57: 60х130 | D57: Размер Орас 60х130
B61: РЦОр60х94 | C61: 280 | D61: Розничная цена Орас 60х94
B62: РЦОр60х130 | C62: 320 | D62: Розничная цена Орас 60х130
B63: Сил | C63: 50 | D63: Силикон
B64: Ор60х94_Кр | C64: 50 | D64: Крепеж
B65: Ор60х94_Мон | C65: 200 | D65: Монтаж
I68: ПОДОКОННИК | L68: ОБНАЛИЧКА(нащельник) | O68: ОТЛИВ | R68: ОТКОС нар. | T68: ОТКОС внут.+нащельник
B69: Тиц400 | C69: Тиц400 | D69: Размер Тициано 400мм | I69: мм/6м | J69: цена п/м с монт | K69: Розница | L69: мм/6м | M69: цена | N69: Розница | O69: мм/6м | P69: цена | Q69: Розница | R69: мм | S69: цена | T69: мм | U69: цена
B70: РБК250 | C70: РБК250 | D70: Размер РБК 250мм | G70: 1 | H70: РЦп150 | I70: 150 | J70: 180 | K70: 250 | L70: 60 | M70: 180 | N70: 180 | O70: 90 | P70: 120 | Q70: 190 | R70: 60х90 | S70: 350 | T70: 450 | U70: 550+50
G71: 2 | H71: РЦп200 | I71: 200 | J71: 220 | K71: 320 | L71: 80 | M71: 200 | N71: 200 | O71: 110 | P71: 150 | Q71: 220 | R71: 90х125 | S71: 410 | T71: 600 | U71: 700+50
B72: Монб_КН | C72: Монб_КН | D72: Монблан с капиносами и наличником | G72: 3 | H72: РЦп250 | I72: 250 | J72: 280 | K72: 380 | L72: 100 | M72: 250 | N72: 250 | O72: 130 | P72: 190 | Q72: 260
B73: Монб_F | C73: Монб_F | D73: Монблан без капиносов с F-50 на клей "Монтаж" | G73: 4 | H73: РЦп300 | I73: 300 | J73: 330 | K73: 430 | O73: 150 | P73: 210 | Q73: 280 | T73: обналичка 50р п.м
G74: 5 | H74: РЦп350 | I74: 350 | J74: 390 | K74: 500 | O74: 180 | P74: 240 | Q74: 310
B75: Сенд_УГ | C75: Сенд_УГ | D75: Сендвич-панель с Углом | G75: 6 | H75: РЦп400 | I75: 400 | J75: 450 | K75: 570 | O75: 200 | P75: 260 | Q75: 330
B76: Сенд_F | C76: Сенд_F | D76: Сендвич-панель с F-ой | G76: 7 | H76: РЦп450 | I76: 450 | J76: 500 | K76: 620 | O76: 220 | P76: 280 | Q76: 350
G77: 8 | H77: РЦп500 | I77: 500 | J77: 560 | K77: 700
G78: 9 | H78: РЦп550 | I78: 550 | J78: 600 | K78: 810
B79: РЦТиц400 | C79: 250 | D79: Розничная цена Тициано 400мм | G79: 10 | H79: РЦп600 | I79: 600 | J79: 670 | K79: 920
B80: РЦРБК250 | C80: 165 | D80: Розничная цена РБК 250мм | G80: 11 | H80: РЦпМюллер | I80: Мюллер | J80: 2000 | K80: 2500
B81: Квад | C81: 50 | D81: Декоратив_Квадрат | G81: 12 | H81: РЦпДанке | I81: Данке | J81: 1500 | K81: 2000
B82: L-ка | C82: 35 | D82: 1шт-3м | H82: РЦзП | J82: 30 | K82: 50 | R82: 6,5м | T82: 6.5м
B83: Мон_ТицРБК | C83: 550 | D83: Монтаж | H83: РЦзО | J83: 30 | K83: 50
H84: МонтП | J84: 50
B85: РЦМонбл_КН | C85: 170 | D85: Розничная цена Монблан с капиносами и наличником | H85: МонтО | J85: 50
B86: РЦМонб_Нал | C86: 100 | D86: Розничная цена Наличника Монблан
B87: РЦМонб_F | C87: 120 | D87: Монблан без капиносов с F-50 на клей "Монтаж"
B88: РЦМонбл_КН_600 | C88: 390 | D88: Розничная цена Монблан600 с капиносами и наличником | I88: монтаж от 350р за конструкцию
B89: РЦМонбл_КН_450 | C89: 290 | D89: Розничная цена Монблан450 с капиносами и наличником | I89: гребенка-70р
B90: РЦМонбл_КН_300 | C90: 195 | D90: Розничная цена Монблан300 с капиносами и наличником | I90: ручка с ключом-350р
B91: РЦМонбл_КН_150 | C91: 150 | D91: Розничная цена Монблан150 с капиносами и наличником | I91: заглушка подоконника-30-50
B92: РЦМонбл_КН_225 | C92: 170 | D92: Розничная цена Монблан225 с капиносами и наличником | I92: заглушка отлива-30-50
B93: РЦМонб_Нал_300 | C93: 70 | D93: Розничная цена Наличника Монблан300
B94: РЦМонб_Нал_150 | C94: 70 | D94: Розничная цена Наличника Монблан150
B95: РЦМонб_Нал_225 | C95: 70 | D95: Розничная цена Наличника Монблан225
B96: F-ка | C96: 90 | D96: 1шт-3м
B97: Уголок | C97: 90 | D97: 1шт-2,7м
B98: Клей | C98: 250 | D98: Клей "Монтаж"
B99: Клей50 | C99: 50
B100: Мон_Монб | C100: 600 | D100: Монтаж
B101: Мон_Монб_300 | C101: 600 | D101: Монтаж
B102: Мон_Монб_150 | C102: 600 | D102: Монтаж
B103: Мон_Монб_225 | C103: 600 | D103: Монтаж
B104: Мон_Сенд | C104: 600 | D104: Монтаж
B105: РЦСенд | C105: 450 | D105: Розничная цена Сендвич-панели 150;200;250;300;375;450;500;500;600;750мм
